bitfinex/quotes_BTCUSD_20241119
["timestamp","ask_amount","ask_price","bid_price","bid_amount"]
[1732019008683,0.216962,92182.0,92174.0,0.0017106]
[1732019008907,0.108487,92177.0,92174.0,0.0017106]
[1732019009120,0.10906255,92185.0,92175.0,0.00154317]
[1732019009322,0.108488,92176.0,92175.0,0.00154317]
[1732019009531,0.108488,92176.0,92174.0,0.0177106]
[1732019009659,0.108485,92178.0,92175.0,0.00154307]
[1732019009863,0.21695,92187.0,92175.0,0.00154307]
[1732019010089,0.10906255,92195.0,92175.0,0.00154307]
[1732019010253,0.16292217,92189.0,92175.0,0.00154307]
[1732019010455,0.108474,92188.0,92182.0,0.10848]
[1732019010662,0.216947,92188.0,92180.0,0.108483]
[1732019010861,0.108476,92187.0,92182.0,0.10848]
[1732019011065,0.216947,92188.0,92183.0,0.00158389]
[1732019011299,0.216947,92188.0,92179.0,0.216967]
[1732019011300,0.108471,92191.0,92185.0,0.108477]
[1732019011497,0.108469,92192.0,92186.0,0.00158398]
[1732019011701,0.216931,92195.0,92188.0,0.108473]
[1732019011912,0.325393,92196.0,92187.0,0.108474]
[1732019012123,0.16292217,92197.0,92188.0,0.00158427]
[1732019012467,0.108472,92189.0,92188.0,0.00158427]
[1732019012691,0.108472,92189.0,92185.0,0.108477]
[1732019012909,0.108472,92189.0,92186.0,0.00158379]
[1732019013136,0.108472,92189.0,92184.0,0.108477]
[1732019013329,0.10906255,92196.0,92187.0,0.00158369]
[1732019013537,0.10906255,92196.0,92188.0,0.227946]
[1732019013782,0.10906255,92196.0,92188.0,0.011]
[1732019014011,0.001,92211.0,92189.0,0.00158418]
[1732019014225,0.16292217,92208.0,92205.0,0.108453]
[1732019014440,0.27137217,92208.0,92203.0,0.108455]
[1732019014662,0.27137217,92208.0,92186.0,0.01]
[1732019014663,0.108449,92209.0,92206.0,0.00157673]
[1732019014912,0.108449,92209.0,92204.0,0.108455]
[1732019015125,0.10845,92208.0,92204.0,0.108455]
[1732019015336,0.108451,92207.0,92205.0,0.00157692]
[1732019015540,0.27198472,92213.0,92206.0,0.216905]
[1732019015541,0.10906255,92213.0,92206.0,0.216905]
[1732019015981,0.10906255,92213.0,92211.0,0.108445]
[1732019016229,0.10906255,92213.0,92206.0,0.216905]
[1732019016230,0.108442,92216.0,92210.0,0.108447]
[1732019016428,0.21750455,92216.0,92212.0,0.0015645]
[1732019016646,0.108442,92215.0,92212.0,0.0015645]
[1732019016862,0.108444,92213.0,92212.0,0.0015645]
[1732019017098,0.108446,92212.0,92207.0,0.108451]
[1732019017318,0.108446,92212.0,92208.0,0.00156479]
[1732019017522,0.108446,92211.0,92210.0,0.003]
[1732019017730,0.216886,92214.0,92210.0,0.003]
[1732019017731,0.108442,92215.0,92210.0,0.003]
[1732019017940,0.108433,92223.0,92218.0,0.108437]
[1732019018175,0.16292217,92226.0,92210.0,0.003]
[1732019018176,0.16292217,92226.0,92223.0,0.108432]
[1732019018382,0.16292217,92226.0,92210.0,0.003]
[1732019018383,0.108431,92224.0,92220.0,0.108435]
[1732019018602,0.108429,92226.0,92224.0,0.00155911]
[1732019018831,0.10843,92225.0,92221.0,0.108434]
[1732019019045,0.10843,92225.0,92214.0,0.216886]
[1732019019253,0.216858,92227.0,92215.0,0.216884]
[1732019019493,0.108433,92223.0,92215.0,0.216884]
[1732019019754,0.108433,92223.0,92218.0,0.108437]
[1732019019967,0.216849,92230.0,92219.0,0.108436]
[1732019020193,0.216849,92230.0,92216.0,0.216882]
[1732019020194,0.10906255,92229.0,92221.0,0.007]
[1732019020400,0.108433,92222.0,92221.0,0.007]
[1732019020643,0.10906255,92229.0,92217.0,0.108439]
[1732019020644,0.216856,92227.0,92217.0,0.108439]
[1732019020848,0.108434,92222.0,92217.0,0.108439]
[1732019021098,0.10906255,92222.0,92207.0,0.10845]
[1732019021315,0.28929932,92226.0,92199.0,0.076]
[1732019021316,0.12737715,92219.0,92199.0,0.076]
[1732019021529,0.216887,92214.0,92202.0,0.216914]
[1732019021734,0.108448,92210.0,92205.0,0.108453]
[1732019021937,0.216887,92214.0,92205.0,0.108453]
[1732019021938,0.108447,92211.0,92205.0,0.108453]
[1732019022145,0.216891,92212.0,92205.0,0.108453]
[1732019022342,0.108449,92209.0,92205.0,0.108453]
[1732019022550,0.216891,92212.0,92205.0,0.108453]
[1732019022551,0.108447,92211.0,92205.0,0.108453]
[1732019022771,0.216887,92214.0,92199.0,0.076]
[1732019022987,0.108446,92212.0,92206.0,0.108452]
[1732019023190,0.16292217,92216.0,92206.0,0.108452]
[1732019023397,0.108447,92211.0,92206.0,0.108452]
[1732019024274,0.108447,92211.0,92207.0,0.00151466]
[1732019024493,0.108446,92212.0,92208.0,0.108449]
[1732019024717,0.16292217,92216.0,92205.0,0.216907]
[1732019024965,0.001,92224.0,92199.0,0.089]
[1732019024966,0.16292217,92224.0,92222.0,0.001]
[1732019025201,0.216823,92241.0,92220.0,0.0824]
[1732019025426,0.10841,92242.0,92235.0,0.108418]
[1732019025642,0.216818,92244.0,92235.0,0.103418]
[1732019025851,0.16292217,92243.0,92235.0,0.00152194]
[1732019026068,0.108414,92239.0,92235.0,0.00152194]
[1732019026285,0.108416,92237.0,92232.0,0.108421]
[1732019026499,0.108416,92237.0,92236.0,0.00152214]
[1732019026696,0.108416,92237.0,92232.0,0.108421]
[1732019026697,0.108417,92236.0,92233.0,0.00152223]
[1732019026895,0.108417,92236.0,92235.0,0.008]
[1732019027248,0.325242,92239.0,92229.0,0.216851]
[1732019027475,0.216825,92240.0,92231.0,0.108422]
[1732019027678,0.108417,92237.0,92231.0,0.108422]
[1732019027851,0.108417,92236.0,92232.0,0.00152262]
[1732019028051,0.108417,92236.0,92232.0,0.10994362]
[1732019028291,0.27134317,92233.0,92232.0,0.00152262]
[1732019028438,0.216832,92237.0,92221.0,0.16292217]
[1732019028639,0.108427,92228.0,92222.0,0.21839029]
[1732019028922,0.108427,92228.0,92222.0,0.00152329]
[1732019028923,0.108432,92223.0,92222.0,0.00152329]
[1732019029080,0.21849455,92223.0,92222.0,0.00152329]
[1732019029286,0.001,92222.0,92206.0,0.00171]
[1732019029460,0.12637715,92215.0,92210.0,0.16292217]
[1732019029667,0.12637715,92215.0,92206.0,0.00171]
[1732019029668,0.108451,92207.0,92206.0,0.00171]
[1732019030911,0.108451,92207.0,92206.0,0.00471]
[1732019033253,0.325323,92216.0,92209.0,0.108449]
[1732019033385,0.216879,92217.0,92206.0,0.00471]
[1732019033386,0.108441,92217.0,92207.0,0.216903]
[1732019033591,0.10906255,92220.0,92212.0,0.108445]
[1732019033809,0.0784,92239.0,92206.0,0.00571]
[1732019034012,0.10843,92226.0,92210.0,0.341294]
[1732019034235,0.16292217,92227.0,92226.0,0.108429]
[1732019034635,0.108424,92230.0,92224.0,0.108431]
[1732019034840,0.108424,92230.0,92215.0,0.216884]
[1732019035077,0.216846,92231.0,92217.0,0.216879]
[1732019035239,0.16292217,92232.0,92221.0,0.108435]
[1732019035617,0.16292217,92232.0,92210.0,0.1244]
[1732019035618,0.108429,92226.0,92222.0,0.108433]
[1732019035795,0.216846,92231.0,92222.0,0.108433]
[1732019036012,0.216841,92234.0,92215.0,0.16292217]
[1732019036219,0.216842,92233.0,92216.0,0.216882]
[1732019036464,0.108424,92231.0,92223.0,0.216863]
[1732019036652,0.10906255,92242.0,92224.0,0.216862]
[1732019036870,0.108416,92237.0,92232.0,0.108421]
[1732019037100,0.108416,92237.0,92216.0,0.216882]
[1732019037101,0.216823,92241.0,92223.0,0.216865]
[1732019037299,0.10906255,92241.0,92219.0,0.001]
[1732019037512,0.108416,92237.0,92233.0,0.10842]
[1732019037725,0.108416,92237.0,92231.0,0.216846]
[1732019037726,0.108416,92237.0,92232.0,0.108421]
[1732019037944,0.216825,92240.0,92232.0,0.108421]
[1732019038199,0.108417,92236.0,92232.0,0.108421]
[1732019038389,0.108417,92236.0,92231.0,0.108423]
[1732019038827,0.108417,92236.0,92221.0,0.21687]
[1732019038828,0.16377767,92253.0,92227.0,0.16392217]
[1732019039020,0.0008551,92238.0,92228.0,0.1317]
[1732019039250,0.0008551,92238.0,92237.0,0.108416]
[1732019039666,0.0008551,92238.0,92237.0,0.10987027]
[1732019040240,0.1092701,92238.0,92237.0,0.00145427]
[1732019040631,0.1092701,92238.0,92231.0,0.108422]
[1732019040632,0.108417,92237.0,92229.0,0.216851]
[1732019040830,0.0008551,92238.0,92222.0,0.226867]
[1732019040831,0.1092701,92238.0,92237.0,0.00644207]
[1732019041074,0.37640646,92238.0,92237.0,0.005]
[1732019041280,0.38640646,92238.0,92237.0,0.005]
[1732019041648,0.31043265,92238.0,92237.0,0.005]
[1732019041854,0.31143265,92238.0,92237.0,0.005]
[1732019042064,0.30143265,92238.0,92225.0,0.16292217]
[1732019042271,0.001,92236.0,92215.0,0.16292217]
[1732019042466,0.108433,92222.0,92215.0,0.27136317]
[1732019042676,0.108433,92222.0,92215.0,0.16292217]
[1732019042907,0.108433,92222.0,92211.0,0.216892]
[1732019043104,0.108433,92222.0,92212.0,0.216889]
[1732019043510,0.108433,92222.0,92214.0,0.108442]
[1732019043756,0.21849555,92222.0,92206.0,0.00171]
[1732019043961,0.21849555,92222.0,92206.0,0.110162]
[1732019044197,0.21749555,92222.0,92221.0,0.0067102]
[1732019045255,0.001,92236.0,92221.0,0.0067102]
[1732019045485,0.001,92236.0,92221.0,0.0017102]
[1732019045486,0.108428,92227.0,92221.0,0.0017102]
[1732019045687,0.108428,92227.0,92221.0,0.1141442]
[1732019045898,0.108426,92229.0,92222.0,0.108433]
[1732019046083,0.108427,92228.0,92222.0,0.108433]
[1732019046534,0.108426,92229.0,92223.0,0.108432]
[1732019046804,0.108426,92229.0,92221.0,0.0087102]
[1732019046805,0.108426,92229.0,92224.0,0.108431]
[1732019047013,0.10906255,92231.0,92222.0,0.216867]
[1732019047209,0.10906255,92231.0,92224.0,0.216863]
[1732019047467,0.0008551,92238.0,92221.0,0.0017102]
[1732019047468,0.0008551,92238.0,92237.0,0.108416]
[1732019047641,0.0008551,92238.0,92223.0,0.0812]
[1732019047889,0.0008551,92238.0,92224.0,0.216863]
[1732019048089,0.0008551,92238.0,92223.0,0.0812]
[1732019048303,0.0008551,92238.0,92237.0,0.108416]
[1732019048516,0.0008551,92238.0,92232.0,0.216843]
[1732019048517,0.0008551,92238.0,92233.0,0.10842]
[1732019048727,0.1092711,92238.0,92231.0,0.108423]
[1732019048942,0.108418,92236.0,92231.0,0.108423]
[1732019049151,0.0008551,92238.0,92224.0,0.216863]
[1732019049360,0.0008551,92238.0,92225.0,0.21686]
[1732019049572,0.108422,92232.0,92226.0,0.108428]
[1732019049775,0.16292217,92237.0,92222.0,0.006]
[1732019049982,0.10906255,92236.0,92222.0,0.006]
[1732019050229,0.108432,92223.0,92222.0,0.006]
[1732019050427,0.216842,92233.0,92221.0,0.0017102]
[1732019050796,0.108433,92222.0,92221.0,0.0017102]
[1732019051106,0.21749555,92222.0,92221.0,0.0017102]
[1732019051316,0.10906255,92222.0,92221.0,0.0017102]
[1732019051484,0.21749555,92222.0,92221.0,0.0017102]
[1732019052646,0.21749555,92222.0,92221.0,0.00314941]
[1732019053125,0.21749555,92222.0,92221.0,0.0057102]
[1732019053324,0.0817,92236.0,92221.0,0.0057102]
[1732019053325,0.108433,92223.0,92221.0,0.0057102]
[1732019053584,0.108433,92223.0,92222.0,0.00143921]
[1732019054030,0.108432,92223.0,92222.0,0.00143921]
[1732019054462,0.108433,92222.0,92221.0,0.0017102]
[1732019054906,0.108433,92223.0,92221.0,0.0057102]
[1732019055141,0.108424,92230.0,92223.0,0.108432]
[1732019055368,0.10906255,92229.0,92223.0,0.216865]
[1732019055567,0.10906255,92229.0,92221.0,0.0057102]
[1732019055759,0.10906255,92229.0,92224.0,0.10843]
[1732019055977,0.216835,92236.0,92229.0,0.108425]
[1732019056208,0.216818,92243.0,92221.0,0.0017102]
[1732019056209,0.108412,92241.0,92221.0,0.0017102]
[1732019056430,0.16292217,92242.0,92221.0,0.0017102]
[1732019056431,0.16292217,92242.0,92234.0,0.108419]
[1732019056649,0.108413,92240.0,92234.0,0.108419]
[1732019056855,0.108414,92239.0,92234.0,0.108419]
[1732019057081,0.216818,92243.0,92234.0,0.108419]
[1732019057082,0.108413,92240.0,92234.0,0.108419]
[1732019057319,0.216818,92243.0,92234.0,0.108419]
[1732019057320,0.10841,92243.0,92234.0,0.108419]
[1732019057744,0.108413,92240.0,92234.0,0.108419]
[1732019057972,0.216817,92244.0,92234.0,0.108419]
[1732019057973,0.108411,92242.0,92234.0,0.108419]
[1732019058192,0.16292217,92243.0,92234.0,0.108419]
[1732019058410,0.108412,92241.0,92234.0,0.108419]
[1732019058941,0.108416,92237.0,92234.0,0.008]
[1732019059158,0.216825,92241.0,92234.0,0.116419]
[1732019059379,0.10991765,92235.0,92217.0,0.108439]
[1732019059582,0.10991765,92235.0,92216.0,0.16292217]
[1732019059583,0.108433,92222.0,92216.0,0.16292217]
[1732019059996,0.108433,92222.0,92210.0,0.217894]
[1732019059997,0.108433,92222.0,92213.0,0.216887]
[1732019060203,0.108433,92222.0,92209.0,0.001]
[1732019060639,0.108433,92222.0,92208.0,0.001]
[1732019061049,0.108433,92222.0,92209.0,0.108448]
[1732019061255,0.108433,92222.0,92221.0,0.0197102]
[1732019061455,0.21749555,92222.0,92221.0,0.0197102]
[1732019061882,0.21749555,92222.0,92221.0,0.0017102]
[1732019062086,0.21749555,92222.0,92221.0,0.0037102]
[1732019062554,0.21749555,92222.0,92221.0,0.0017102]
[1732019062555,0.108433,92222.0,92221.0,0.0017102]
[1732019062982,0.21749555,92222.0,92221.0,0.0017102]
[1732019064237,0.22749555,92222.0,92221.0,0.0017102]
[1732019064438,0.22749555,92222.0,92221.0,0.0087102]
[1732019065070,0.22749555,92222.0,92221.0,0.0017102]
[1732019065724,0.21749555,92222.0,92221.0,0.0017102]
[1732019068017,0.22749555,92222.0,92221.0,0.0017102]
[1732019070619,0.22849555,92222.0,92221.0,0.0017102]
[1732019070962,0.22749555,92222.0,92221.0,0.0017102]
[1732019071171,0.22849555,92222.0,92221.0,0.0017102]
[1732019071913,0.22749555,92222.0,92221.0,0.0017102]
[1732019072127,0.21749555,92222.0,92221.0,0.0017102]
[1732019073366,0.0008551,92238.0,92237.0,0.01]
[1732019073566,0.0008555,92253.0,92237.0,0.01]
[1732019073567,0.0008555,92253.0,92252.0,0.119398]
[1732019073789,0.0008555,92253.0,92252.0,0.33577515]
[1732019073991,0.0008555,92253.0,92252.0,0.35577515]
[1732019074454,0.0008555,92253.0,92252.0,0.3362289]
[1732019074658,0.0008555,92253.0,92252.0,0.3462289]
[1732019074880,0.0008555,92253.0,92252.0,0.20985175]
[1732019075095,0.0008555,92253.0,92252.0,0.21985175]
[1732019075301,0.0008555,92253.0,92252.0,0.55461817]
[1732019075751,0.0008555,92253.0,92252.0,0.52661817]
[1732019076178,0.0008555,92253.0,92252.0,0.55461817]
[1732019077407,0.0008555,92253.0,92252.0,0.52661817]
[1732019077616,0.0008555,92253.0,92252.0,0.55461817]
[1732019078049,0.0008555,92253.0,92252.0,0.52661817]
[1732019078532,0.0008555,92253.0,92252.0,0.55461817]
[1732019078764,0.0008555,92253.0,92252.0,0.55561817]
[1732019078965,0.0008555,92253.0,92252.0,0.22085175]
[1732019079166,0.0008555,92253.0,92252.0,0.21985175]
[1732019079386,0.0008555,92253.0,92252.0,0.246398]
[1732019080691,0.0008555,92253.0,92252.0,0.218398]
[1732019080856,0.0008555,92253.0,92252.0,0.246398]
[1732019081439,0.0008555,92253.0,92252.0,0.218398]
[1732019081636,0.0008555,92253.0,92252.0,0.246398]
[1732019082060,0.0008555,92253.0,92252.0,0.218398]
[1732019082501,0.0008555,92253.0,92252.0,0.246398]
[1732019083480,0.0008555,92253.0,92252.0,0.43410187]
[1732019083660,0.0008555,92253.0,92252.0,0.40610187]
[1732019084235,0.0008555,92253.0,92252.0,0.43410187]
[1732019084460,0.0008555,92253.0,92252.0,0.40610187]
[1732019084968,0.0008555,92253.0,92252.0,0.43410187]
[1732019085170,0.0008555,92253.0,92252.0,0.43510187]
[1732019085345,0.0008555,92253.0,92252.0,0.40710187]
[1732019085564,0.0008555,92253.0,92252.0,0.40610187]
[1732019085766,0.0008555,92253.0,92252.0,0.43410187]
[1732019085964,0.0008555,92253.0,92252.0,0.54316442]
[1732019086423,0.0008555,92253.0,92252.0,0.55316442]
[1732019087471,0.0008555,92253.0,92252.0,0.52516442]
[1732019087672,0.0008555,92253.0,92252.0,0.55416442]
[1732019088273,0.0008555,92253.0,92252.0,0.52616442]
[1732019088579,0.0008555,92253.0,92252.0,0.55416442]
[1732019088810,0.0008555,92253.0,92252.0,0.55316442]
[1732019089247,0.0008555,92253.0,92252.0,0.55416442]
[1732019089672,0.0008555,92253.0,92252.0,0.52616442]
[1732019090540,0.0008555,92253.0,92252.0,0.55316442]
[1732019091196,0.0008555,92253.0,92252.0,0.52516442]
[1732019091434,0.01,92256.0,92255.0,0.207195]
[1732019091435,5e-07,92256.0,92255.0,0.207195]
[1732019091652,5e-07,92256.0,92255.0,0.41625755]
[1732019091851,5e-07,92256.0,92255.0,0.41725755]
[1732019092703,5e-07,92256.0,92255.0,0.41625755]
[1732019093877,5e-07,92256.0,92255.0,0.44425755]
[1732019094278,5e-07,92256.0,92255.0,0.41725755]
[1732019094508,5e-07,92256.0,92255.0,0.41625755]
[1732019094711,5e-07,92256.0,92255.0,0.69664259]
[1732019095303,5e-07,92256.0,92255.0,0.66864259]
[1732019095520,5e-07,92256.0,92255.0,0.69764259]
[1732019095742,5e-07,92256.0,92255.0,0.74171174]
[1732019096180,5e-07,92256.0,92255.0,0.61551922]
[1732019096591,5e-07,92256.0,92255.0,0.61651922]
[1732019096797,5e-07,92256.0,92255.0,0.58751922]
[1732019097006,5e-07,92256.0,92255.0,0.61651922]
[1732019097641,5e-07,92256.0,92255.0,0.58851922]
[1732019097857,5e-07,92256.0,92255.0,0.61651922]
[1732019098288,5e-07,92256.0,92255.0,0.58851922]
[1732019098721,5e-07,92256.0,92255.0,0.61651922]
[1732019098941,0.0008556,92256.0,92255.0,0.61551922]
[1732019099596,0.0008556,92256.0,92255.0,0.61651922]
[1732019100250,0.0008556,92256.0,92255.0,0.58851922]
[1732019100467,0.0008556,92256.0,92255.0,0.58751922]
[1732019100635,0.0008556,92256.0,92255.0,0.61651922]
[1732019100874,0.0008556,92256.0,92255.0,0.61551922]
[1732019101063,0.0008556,92256.0,92255.0,0.58851922]
[1732019101422,0.0008556,92256.0,92255.0,0.61651922]
[1732019101829,0.0008556,92256.0,92255.0,0.58851922]
[1732019102046,0.0008556,92256.0,92255.0,0.58751922]
[1732019102263,0.0008556,92256.0,92255.0,0.61551922]
[1732019104791,0.0008556,92256.0,92255.0,0.61651922]
[1732019104993,0.0008556,92256.0,92255.0,0.61551922]
[1732019105243,0.0008556,92256.0,92255.0,0.58851922]
[1732019105459,0.0008556,92256.0,92255.0,0.61551922]
[1732019105862,0.0008556,92256.0,92255.0,0.63851922]
[1732019106681,6e-07,92256.0,92255.0,0.53771922]
[1732019106884,6e-07,92256.0,92255.0,0.50971922]
[1732019107132,0.0008553,92269.0,92268.0,0.229379]
[1732019107320,0.0008553,92269.0,92268.0,0.46463407]
[1732019107525,0.0008553,92269.0,92268.0,0.46363407]
[1732019107741,3e-07,92269.0,92268.0,0.48663407]
[1732019107992,3e-07,92269.0,92268.0,0.61183407]
[1732019108201,3e-07,92274.0,92273.0,0.128374]
[1732019108442,0.0138086,92293.0,92280.0,0.128365]
[1732019108666,0.0138086,92293.0,92280.0,0.46362007]
[1732019108667,1e-07,92281.0,92280.0,0.46362007]
[1732019108884,0.01077983,92293.0,92292.0,0.118351]
[1732019109138,0.01077983,92293.0,92292.0,0.45360607]
[1732019109567,0.01077983,92293.0,92292.0,0.45460607]
[1732019110238,0.01077983,92293.0,92292.0,0.45360607]
[1732019110612,0.01077983,92293.0,92292.0,0.45460607]
[1732019111262,8.3e-07,92293.0,92292.0,0.50460607]
[1732019111470,8.3e-07,92293.0,92292.0,0.51560607]
[1732019111684,8.3e-07,92293.0,92292.0,0.51460607]
[1732019111848,8.3e-07,92293.0,92292.0,0.48660607]
[1732019112056,8.3e-07,92293.0,92292.0,0.48760607]
[1732019112274,8.3e-07,92293.0,92292.0,0.48660607]
[1732019112442,8.3e-07,92293.0,92292.0,0.52550972]
[1732019112656,8.3e-07,92293.0,92292.0,0.56856767]
[1732019112859,8.3e-07,92293.0,92292.0,0.53166402]
[1732019113161,8.3e-07,92293.0,92292.0,0.50866402]
[1732019113368,8.3e-07,92293.0,92292.0,0.4104715]
[1732019113814,8.3e-07,92293.0,92292.0,0.3714715]
[1732019114006,8.3e-07,92293.0,92292.0,0.3814715]
[1732019114343,8.3e-07,92293.0,92292.0,0.3824715]
[1732019114549,8.3e-07,92293.0,92292.0,0.3814715]
[1732019114754,8.3e-07,92293.0,92292.0,0.3724715]
[1732019115156,8.3e-07,92293.0,92292.0,0.34641355]
[1732019115360,8.3e-07,92293.0,92292.0,0.236351]
[1732019115580,8.3e-07,92293.0,92292.0,0.136351]
[1732019115784,0.07840083,92293.0,92292.0,0.028]
[1732019115946,0.08648806,92293.0,92292.0,0.028]
[1732019116166,0.19483806,92293.0,92292.0,0.028]
[1732019116518,0.108353,92291.0,92286.0,0.108358]
[1732019116919,0.11644123,92290.0,92282.0,0.216724]
[1732019117105,0.07840083,92293.0,92289.0,0.108355]
[1732019117316,0.00808985,92292.0,92289.0,0.108355]
[1732019117479,0.00808985,92291.0,92289.0,0.108355]
[1732019117710,0.07840083,92293.0,92288.0,0.216712]
[1732019117863,0.07840083,92293.0,92292.0,0.108351]
[1732019118067,0.00809091,92293.0,92292.0,0.108351]
[1732019118531,0.1231,92292.0,92281.0,0.001]
[1732019118752,0.00809008,92291.0,92286.0,0.16259722]
[1732019118964,0.108354,92290.0,92282.0,0.108363]
[1732019119192,0.00809008,92291.0,92281.0,0.001]
[1732019119637,0.108355,92289.0,92284.0,0.10836]
[1732019120093,0.108354,92290.0,92285.0,0.108359]
[1732019120305,0.00809008,92291.0,92281.0,0.001]
[1732019120306,0.00809008,92291.0,92284.0,0.108361]
[1732019120532,0.00809008,92291.0,92290.0,0.108354]
[1732019120881,0.00809008,92291.0,92281.0,0.028]
[1732019121071,0.1231,92292.0,92284.0,0.10836]
[1732019121274,0.22479812,92291.0,92281.0,0.001]
[1732019121472,0.108357,92288.0,92284.0,0.024]
[1732019121679,0.22480112,92290.0,92284.0,0.024]
[1732019121680,0.00809312,92287.0,92285.0,0.108359]
[1732019121931,0.108353,92291.0,92287.0,0.108357]
[1732019122145,0.1231,92292.0,92284.0,0.240721]
[1732019122146,0.108359,92285.0,92284.0,0.024]
[1732019122577,0.216709,92290.0,92284.0,0.024]
[1732019122849,0.108359,92285.0,92284.0,0.024]
[1732019123063,0.11645274,92285.0,92284.0,0.024]
[1732019123280,0.108354,92290.0,92282.0,0.0017092]
[1732019123506,0.1231,92292.0,92282.0,0.0017092]
[1732019123740,0.108355,92289.0,92284.0,0.13236]
[1732019123963,0.1231,92292.0,92285.0,0.108358]
[1732019124172,0.1231,92292.0,92284.0,0.10836]
[1732019124380,0.1231,92292.0,92284.0,0.024]
[1732019124608,0.00809438,92291.0,92284.0,0.024]
[1732019124865,0.11644838,92290.0,92285.0,0.108359]
[1732019125093,0.00809438,92289.0,92285.0,0.108359]
[1732019125332,0.1231,92292.0,92284.0,0.024]
[1732019125333,0.00809438,92288.0,92284.0,0.024]
[1732019125564,0.00809438,92287.0,92284.0,0.024]
[1732019125787,0.108359,92285.0,92282.0,0.0017092]
[1732019126019,0.00809438,92284.0,92282.0,0.0017092]
[1732019126248,0.11645638,92283.0,92282.0,0.0017092]
[1732019126448,0.11628168,92283.0,92282.0,0.0017092]
[1732019127092,0.11628168,92283.0,92282.0,0.0277092]
[1732019127295,0.00791968,92283.0,92282.0,0.0277092]
[1732019127500,0.00791968,92283.0,92282.0,0.0017092]
[1732019127710,0.11628168,92283.0,92282.0,0.0117092]
[1732019128624,0.19688168,92283.0,92282.0,0.0117092]
[1732019129253,0.30594423,92283.0,92282.0,0.0117092]
[1732019129457,0.19688168,92283.0,92282.0,0.0117092]
[1732019130385,0.19688168,92283.0,92282.0,0.0017092]
[1732019130564,0.19688168,92283.0,92282.0,0.0087092]
[1732019131206,0.0108546,92293.0,92282.0,0.0087092]
[1732019131207,0.0008546,92293.0,92282.0,0.24326472]
[1732019131424,0.0008546,92293.0,92292.0,0.208351]
[1732019131632,0.0008546,92293.0,92292.0,0.31741355]
[1732019133642,0.0008546,92293.0,92292.0,0.31841355]
[1732019133841,0.0008546,92293.0,92292.0,0.34641355]
[1732019135078,1.89996396,92300.0,92299.0,0.128343]
[1732019135277,1.89996396,92300.0,92299.0,0.36140555]
[1732019135278,1.66317568,92300.0,92299.0,0.36140555]
[1732019135550,1.62676568,92300.0,92299.0,0.4571276]
[1732019135730,1.58342968,92300.0,92299.0,0.45712642]
[1732019135881,1.58342968,92300.0,92299.0,0.49304802]
[1732019136099,1.56176168,92300.0,92299.0,0.54552251]
[1732019136309,0.01852568,92300.0,92299.0,0.55151967]
[1732019136709,0.01852568,92300.0,92299.0,0.60399416]
[1732019137098,0.01852568,92300.0,92299.0,0.57599416]
[1732019137303,0.01852568,92300.0,92299.0,0.60399416]
[1732019138371,0.01852568,92300.0,92299.0,0.60299416]
[1732019139248,0.01852568,92300.0,92299.0,0.57499416]
[1732019139860,0.01852568,92300.0,92299.0,0.60299416]
[1732019140285,6.8e-07,92300.0,92299.0,0.50609807]
[1732019140495,0.00671668,92320.0,92319.0,0.20832]
[1732019140705,0.00671668,92320.0,92319.0,0.31738255]
[1732019140927,0.00671668,92320.0,92319.0,0.35330415]
[1732019141383,0.00671668,92320.0,92319.0,0.31738255]
[1732019141588,0.00671668,92320.0,92319.0,0.36280415]
[1732019142257,0.00671668,92320.0,92319.0,0.32688255]
[1732019142476,0.00671668,92320.0,92319.0,0.34888255]
[1732019142904,0.00671668,92320.0,92319.0,0.38480415]
[1732019143157,0.00671668,92320.0,92319.0,0.38580415]
[1732019143362,0.00671668,92320.0,92319.0,0.34988255]
[1732019143574,0.00671668,92320.0,92319.0,0.38580415]
[1732019143811,0.00671668,92320.0,92319.0,0.39462794]
[1732019144020,0.00671668,92320.0,92319.0,0.34038255]
[1732019144267,0.00671668,92320.0,92319.0,0.23032]
[1732019144491,0.00671668,92320.0,92319.0,0.13032]
[1732019145362,0.00671668,92320.0,92319.0,0.24988255]
[1732019145778,0.0004,92329.0,92328.0,0.34500152]
[1732019146004,0.0004,92329.0,92328.0,0.45406407]
[1732019146210,0.0004,92329.0,92328.0,0.45306407]
[1732019146416,0.0004,92329.0,92328.0,0.48898567]
[1732019147085,0.0004,92329.0,92328.0,0.35587155]
[1732019147523,0.0004,92329.0,92328.0,0.38949057]
[1732019148215,0.0004,92329.0,92328.0,0.36049057]
[1732019148416,0.0004,92329.0,92328.0,0.36149057]
[1732019148620,0.0004,92329.0,92328.0,0.38849057]
[1732019149043,0.0004,92329.0,92328.0,0.36049057]
[1732019149553,0.0004,92329.0,92328.0,0.38349057]
[1732019149983,0.0004,92329.0,92328.0,0.36049057]
[1732019150201,0.0004,92329.0,92328.0,0.38849057]
[1732019150420,0.0004,92329.0,92328.0,0.39849057]
[1732019151307,0.0004,92329.0,92328.0,0.46393372]
[1732019151718,0.0004,92329.0,92328.0,0.44282331]
[1732019151952,0.0012551,92349.0,92330.0,0.227807]
[1732019152179,0.0012551,92349.0,92340.0,0.34398752]
[1732019152403,0.0012551,92349.0,92340.0,0.45305007]
[1732019152611,0.0012551,92349.0,92340.0,0.50216048]
[1732019153053,0.0012551,92349.0,92340.0,0.53284858]
[1732019153259,0.0012551,92349.0,92340.0,0.50216048]
[1732019153685,0.0012551,92349.0,92340.0,0.53284858]
[1732019154104,0.0012551,92349.0,92340.0,0.50216048]
[1732019154532,0.0012551,92349.0,92340.0,0.48373817]
[1732019154795,0.0012551,92349.0,92340.0,0.47255007]
[1732019155437,0.0012551,92349.0,92340.0,0.236295]
[1732019155865,0.0012551,92349.0,92340.0,0.108295]
[1732019156099,0.108788,92346.0,92340.0,0.026]
[1732019156328,0.108794,92342.0,92340.0,0.026]
[1732019156545,0.00756063,92341.0,92340.0,0.026]
[1732019156758,0.00756063,92341.0,92340.0,0.134295]
[1732019156970,0.00756063,92341.0,92340.0,0.26048752]
[1732019156971,0.00706063,92341.0,92340.0,0.26048752]
[1732019157643,0.00706063,92341.0,92340.0,0.23448752]
[1732019157879,0.00706063,92341.0,92340.0,0.26048752]
[1732019158317,0.00791613,92341.0,92340.0,0.23448752]
[1732019158534,0.00791613,92341.0,92340.0,0.26048752]
[1732019158951,0.00791613,92341.0,92340.0,0.23448752]